[Event "Late-Titled-Tuesday-Blitz-October-03-2023"]
[Site "Chess.com"]
[Date "2023.10.03"]
[Round "4"]
[White "Arteler"]
[Black "Qvalda"]
[Result "0-1"]
[WhiteElo "2612"]
[BlackElo "2394"]
[TimeControl "180+1"]
[EndTime "14:35:13 PDT"]
[Termination "Qvalda won by checkmate"]

1. e4 {[%clk 0:03:00.9]} 1... e6 {[%clk 0:02:58.9]} 2. d4 {[%clk 0:03:00.3]}
2... d5 {[%clk 0:02:59.8]} 3. Nc3 {[%clk 0:02:54.9]} 3... Be7 {[%clk 0:02:58.4]}
4. Qg4 {[%clk 0:02:45.1]} 4... Nf6 {[%clk 0:02:53.2]} 5. Qxg7 {[%clk 0:02:42.7]}
5... Rg8 {[%clk 0:02:53.3]} 6. Qh6 {[%clk 0:02:41.6]} 6... dxe4 {[%clk
0:02:52.7]} 7. Be3 {[%clk 0:02:35]} 7... Rg6 {[%clk 0:02:48.5]} 8. Qh4 {[%clk
0:02:31.7]} 8... b6 {[%clk 0:02:13.7]} 9. Nxe4 {[%clk 0:02:17.2]} 9... Bb7
{[%clk 0:02:13.7]} 10. Nxf6+ {[%clk 0:02:15.4]} 10... Bxf6 {[%clk 0:02:14.6]}
11. Qxh7 {[%clk 0:01:58.6]} 11... Nc6 {[%clk 0:02:03.1]} 12. O-O-O {[%clk
0:01:53.3]} 12... Qd5 {[%clk 0:01:58]} 13. c4 {[%clk 0:01:35.3]} 13... Qa5
{[%clk 0:01:55.4]} 14. Kb1 {[%clk 0:01:08.6]} 14... Nb4 {[%clk 0:01:47.2]} 15.
a3 {[%clk 0:01:07.9]} 15... Be4+ {[%clk 0:01:46.7]} 16. Kc1 {[%clk 0:00:59.8]}
16... Na2# {[%clk 0:01:45.9]} 0-1

[Event "Late-Titled-Tuesday-Blitz-October-03-2023"]
[Site "Chess.com"]
[Date "2023.10.03"]
[Round "4"]
[White "TheoSlade"]
[Black "pirulillo"]
[Result "1-0"]
[WhiteElo "2512"]
[BlackElo "2352"]
[TimeControl "180+1"]
[EndTime "14:35:14 PDT"]
[Termination "TheoSlade won by resignation"]

1. d4 {[%clk 0:03:00.9]} 1... Nf6 {[%clk 0:02:59.3]} 2. c4 {[%clk 0:03:00.6]}
2... g6 {[%clk 0:02:59.7]} 3. Nc3 {[%clk 0:03:00.4]} 3... Bg7 {[%clk 0:03:00.6]}
4. e4 {[%clk 0:03:00.6]} 4... O-O {[%clk 0:03:00.3]} 5. Nf3 {[%clk 0:03:01.1]}
5... d6 {[%clk 0:03:01.2]} 6. Be2 {[%clk 0:03:01.5]} 6... e5 {[%clk 0:03:01.4]}
7. Be3 {[%clk 0:03:02.2]} 7... Ng4 {[%clk 0:03:00.2]} 8. Bg5 {[%clk 0:03:02.6]}
8... f6 {[%clk 0:03:00.3]} 9. Bh4 {[%clk 0:03:03.2]} 9... g5 {[%clk 0:03:00.5]}
10. Bg3 {[%clk 0:03:03.6]} 10... Nc6 {[%clk 0:03:00.4]} 11. d5 {[%clk
0:03:00.6]} 11... Ne7 {[%clk 0:03:00]} 12. h3 {[%clk 0:03:01.2]} 12... Nh6
{[%clk 0:02:59.9]} 13. Bh2 {[%clk 0:03:01.8]} 13... Ng6 {[%clk 0:02:56.8]} 14.
g4 {[%clk 0:03:00.1]} 14... Nf7 {[%clk 0:02:50.4]} 15. Nd2 {[%clk 0:02:53.8]}
15... Nf4 {[%clk 0:02:48.8]} 16. Bg3 {[%clk 0:02:46.2]} 16... h5 {[%clk
0:02:45.3]} 17. gxh5 {[%clk 0:02:16.4]} 17... Nh6 {[%clk 0:02:30.6]} 18. Bg4
{[%clk 0:02:04.7]} 18... f5 {[%clk 0:02:28.5]} 19. exf5 {[%clk 0:01:59]} 19...
Nxf5 {[%clk 0:02:29.4]} 20. Bxf4 {[%clk 0:01:43.1]} 20... exf4 {[%clk
0:02:27.5]} 21. O-O {[%clk 0:01:38.2]} 21... Nd4 {[%clk 0:02:22.2]} 22. Nf3
{[%clk 0:01:35.1]} 22... Nf5 {[%clk 0:02:06.4]} 23. Kh2 {[%clk 0:01:35.2]} 23...
Nh6 {[%clk 0:01:59.8]} 24. Rg1 {[%clk 0:01:32.3]} 24... Bxc3 {[%clk 0:01:52.2]}
25. bxc3 {[%clk 0:01:31.3]} 25... Kh8 {[%clk 0:01:51.2]} 26. Bxc8 {[%clk
0:01:29.1]} 26... Qxc8 {[%clk 0:01:50.4]} 27. Qd4+ {[%clk 0:01:24.2]} 27... Kh7
{[%clk 0:01:46.5]} 28. Nxg5+ {[%clk 0:01:24.2]} 1-0

[Event "Late-Titled-Tuesday-Blitz-October-03-2023"]
[Site "Chess.com"]
[Date "2023.10.03"]
[Round "4"]
[White "Vegan4future"]
[Black "shirovin"]
[Result "1-0"]
[WhiteElo "2411"]
[BlackElo "2073"]
[TimeControl "180+1"]
[EndTime "14:36:04 PDT"]
[Termination "Vegan4future won by resignation"]

1. d4 {[%clk 0:02:25.9]} 1... Nf6 {[%clk 0:02:55]} 2. Nc3 {[%clk 0:02:25.1]}
2... d5 {[%clk 0:02:53.3]} 3. Bf4 {[%clk 0:02:25.5]} 3... c6 {[%clk 0:02:53.7]}
4. e3 {[%clk 0:02:25.3]} 4... g6 {[%clk 0:02:54.2]} 5. h4 {[%clk 0:02:24.2]}
5... h5 {[%clk 0:02:52.7]} 6. Nf3 {[%clk 0:02:24.5]} 6... Bg7 {[%clk 0:02:52.4]}
7. Ne5 {[%clk 0:02:22.8]} 7... Nbd7 {[%clk 0:02:51.2]} 8. Qd2 {[%clk 0:02:03.2]}
8... O-O {[%clk 0:02:50.3]} 9. O-O-O {[%clk 0:02:02.7]} 9... Nxe5 {[%clk
0:02:48.2]} 10. Bxe5 {[%clk 0:02:01.2]} 10... b5 {[%clk 0:02:46.2]} 11. f3
{[%clk 0:01:52.9]} 11... b4 {[%clk 0:02:39.4]} 12. Ne2 {[%clk 0:01:52.8]} 12...
a5 {[%clk 0:02:34.9]} 13. Nf4 {[%clk 0:01:42.5]} 13... Bf5 {[%clk 0:02:30.7]}
14. Be2 {[%clk 0:01:39.4]} 14... Nd7 {[%clk 0:02:29.3]} 15. Bxg7 {[%clk
0:01:38.8]} 15... Kxg7 {[%clk 0:02:29.5]} 16. g4 {[%clk 0:01:39.7]} 16... hxg4
{[%clk 0:02:23.5]} 17. fxg4 {[%clk 0:01:34.5]} 17... Be4 {[%clk 0:02:23.3]} 18.
Rh3 {[%clk 0:01:29.1]} 18... a4 {[%clk 0:02:02.7]} 19. Qxb4 {[%clk 0:01:26.2]}
19... Rb8 {[%clk 0:02:01.9]} 20. Qc3 {[%clk 0:01:23.6]} 20... Qb6 {[%clk
0:01:52.9]} 21. a3 {[%clk 0:01:17.4]} 21... Nf6 {[%clk 0:01:51.2]} 22. g5 {[%clk
0:01:14]} 22... Nd7 {[%clk 0:01:35.9]} 23. h5 {[%clk 0:01:12.6]} 23... c5 {[%clk
0:01:31.2]} 24. dxc5+ {[%clk 0:01:07.1]} 1-0

[Event "Late-Titled-Tuesday-Blitz-October-03-2023"]
[Site "Chess.com"]
[Date "2023.10.03"]
[Round "4"]
[White "ThePeasant98"]
[Black "Triumphmate"]
[Result "0-1"]
[WhiteElo "2170"]
[BlackElo "2496"]
[TimeControl "180+1"]
[EndTime "14:36:14 PDT"]
[Termination "Triumphmate won by resignation"]

1. d4 {[%clk 0:03:00.9]} 1... d5 {[%clk 0:03:00.9]} 2. c4 {[%clk 0:03:01.1]}
2... e6 {[%clk 0:02:56.1]} 3. Nf3 {[%clk 0:03:01.4]} 3... Nf6 {[%clk 0:02:55.6]}
4. g3 {[%clk 0:03:01.6]} 4... Be7 {[%clk 0:02:56.1]} 5. Bg2 {[%clk 0:03:02.1]}
5... O-O {[%clk 0:02:57]} 6. O-O {[%clk 0:03:02.6]} 6... dxc4 {[%clk 0:02:57.9]}
7. Qc2 {[%clk 0:03:02.8]} 7... c5 {[%clk 0:02:58.8]} 8. dxc5 {[%clk 0:02:56.6]}
8... Nc6 {[%clk 0:02:55.8]} 9. Qxc4 {[%clk 0:02:49.7]} 9... e5 {[%clk
0:02:52.4]} 10. Nc3 {[%clk 0:02:48.6]} 10... Be6 {[%clk 0:02:46.8]} 11. Qb5
{[%clk 0:02:41.3]} 11... Qc7 {[%clk 0:02:40.5]} 12. e3 {[%clk 0:02:03.9]} 12...
a6 {[%clk 0:02:33.1]} 13. Qe2 {[%clk 0:02:02.9]} 13... Bxc5 {[%clk 0:02:32.5]}
14. Ng5 {[%clk 0:01:56.2]} 14... Bg4 {[%clk 0:02:31.2]} 15. Qc2 {[%clk
0:01:41.2]} 15... h6 {[%clk 0:02:26.9]} 16. Nge4 {[%clk 0:01:39.4]} 16... Nxe4
{[%clk 0:02:25.6]} 17. Nxe4 {[%clk 0:01:40.3]} 17... Be7 {[%clk 0:02:25.5]} 18.
a3 {[%clk 0:01:34.8]} 18... Rac8 {[%clk 0:02:22.4]} 19. b4 {[%clk 0:01:30.1]}
19... Qb6 {[%clk 0:02:16.2]} 20. Qa2 {[%clk 0:01:15.7]} 20... Be6 {[%clk
0:02:15.2]} 21. Qb1 {[%clk 0:00:59.2]} 21... f5 {[%clk 0:02:08.9]} 22. Nd2
{[%clk 0:00:52.6]} 22... Rfd8 {[%clk 0:02:08.4]} 23. Nb3 {[%clk 0:00:46.9]}
23... e4 {[%clk 0:01:50.6]} 24. f3 {[%clk 0:00:21.8]} 24... Rd3 {[%clk 0:01:50]}
25. fxe4 {[%clk 0:00:20.6]} 25... Rxb3 {[%clk 0:01:49.5]} 0-1

[Event "Late-Titled-Tuesday-Blitz-October-03-2023"]
[Site "Chess.com"]
[Date "2023.10.03"]
[Round "4"]
[White "svilson23"]
[Black "Chessnut2018"]
[Result "1-0"]
[WhiteElo "2210"]
[BlackElo "1261"]
[TimeControl "180+1"]
[EndTime "14:36:22 PDT"]
[Termination "svilson23 won by checkmate"]

1. d4 {[%clk 0:03:00.9]} 1... d5 {[%clk 0:02:59]} 2. Bg5 {[%clk 0:02:59.9]} 2...
Nf6 {[%clk 0:02:57.3]} 3. Bxf6 {[%clk 0:03:00.1]} 3... exf6 {[%clk 0:02:56.8]}
4. e3 {[%clk 0:03:01]} 4... Be7 {[%clk 0:02:56.8]} 5. g3 {[%clk 0:03:01.4]} 5...
O-O {[%clk 0:02:56.6]} 6. Bg2 {[%clk 0:03:02.3]} 6... c6 {[%clk 0:02:56.4]} 7.
Ne2 {[%clk 0:03:02.9]} 7... a6 {[%clk 0:02:54.8]} 8. O-O {[%clk 0:03:03.1]} 8...
b5 {[%clk 0:02:54.8]} 9. Nd2 {[%clk 0:03:01.5]} 9... Bf5 {[%clk 0:02:51.3]} 10.
a4 {[%clk 0:03:01.2]} 10... Nd7 {[%clk 0:02:49]} 11. Nb3 {[%clk 0:02:55.9]}
11... Bg6 {[%clk 0:02:42.9]} 12. Qd2 {[%clk 0:02:55.9]} 12... Qc7 {[%clk
0:02:40.1]} 13. h4 {[%clk 0:02:55.5]} 13... h5 {[%clk 0:02:37.2]} 14. Nf4 {[%clk
0:02:56]} 14... b4 {[%clk 0:02:19.1]} 15. a5 {[%clk 0:02:54]} 15... Rfc8 {[%clk
0:02:12.5]} 16. Qd1 {[%clk 0:02:53.4]} 16... Kh7 {[%clk 0:02:07.5]} 17. Nxh5
{[%clk 0:02:53.1]} 17... Bxh5 {[%clk 0:02:06.3]} 18. Qxh5+ {[%clk 0:02:52.9]}
18... Kg8 {[%clk 0:02:06.3]} 19. Rad1 {[%clk 0:02:40.7]} 19... Nf8 {[%clk
0:02:05.9]} 20. Rfe1 {[%clk 0:02:37.8]} 20... Nh7 {[%clk 0:02:01.9]} 21. e4
{[%clk 0:02:33.4]} 21... g6 {[%clk 0:01:47.6]} 22. Qg4 {[%clk 0:02:33]} 22...
Bf8 {[%clk 0:01:26.5]} 23. h5 {[%clk 0:02:29.2]} 23... g5 {[%clk 0:01:21.6]} 24.
exd5 {[%clk 0:02:28]} 24... cxd5 {[%clk 0:01:18.1]} 25. Bxd5 {[%clk 0:02:27.2]}
25... Rab8 {[%clk 0:01:14.1]} 26. Nc5 {[%clk 0:02:24.4]} 26... Bxc5 {[%clk
0:00:59.1]} 27. dxc5 {[%clk 0:02:25.3]} 27... Qxc5 {[%clk 0:00:55.6]} 28. Bxf7+
{[%clk 0:02:25.5]} 28... Kxf7 {[%clk 0:00:45.7]} 29. Rd7+ {[%clk 0:02:24.3]}
29... Kg8 {[%clk 0:00:45.4]} 30. Ree7 {[%clk 0:02:22.2]} 30... Qxc2 {[%clk
0:00:09.3]} 31. Rg7+ {[%clk 0:02:19.7]} 31... Kf8 {[%clk 0:00:04.5]} 32. Rdf7+
{[%clk 0:02:18.6]} 32... Ke8 {[%clk 0:00:03.6]} 33. Qe6+ {[%clk 0:02:18.8]}
33... Kd8 {[%clk 0:00:01.8]} 34. Qd7# {[%clk 0:02:19.1]} 1-0

[Event "Late-Titled-Tuesday-Blitz-October-03-2023"]
[Site "Chess.com"]
[Date "2023.10.03"]
[Round "4"]
[White "HamedWafa4"]
[Black "Rozhkov_V"]
[Result "1-0"]
[WhiteElo "2616"]
[BlackElo "2438"]
[TimeControl "180+1"]
[EndTime "14:36:23 PDT"]
[Termination "HamedWafa4 won on time"]

1. e4 {[%clk 0:03:00.9]} 1... e6 {[%clk 0:02:59.3]} 2. d4 {[%clk 0:03:00]} 2...
d5 {[%clk 0:02:59.5]} 3. e5 {[%clk 0:03:00.3]} 3... c5 {[%clk 0:02:59.3]} 4. c3
{[%clk 0:02:59.5]} 4... Qb6 {[%clk 0:02:59.8]} 5. Nf3 {[%clk 0:02:59.9]} 5...
Nc6 {[%clk 0:03:00.4]} 6. Be2 {[%clk 0:03:00.2]} 6... cxd4 {[%clk 0:02:59.9]} 7.
cxd4 {[%clk 0:03:01.1]} 7... Nh6 {[%clk 0:03:00.5]} 8. Bxh6 {[%clk 0:03:01.1]}
8... Qxb2 {[%clk 0:02:59.5]} 9. O-O {[%clk 0:03:01.3]} 9... gxh6 {[%clk
0:02:18.3]} 10. Nbd2 {[%clk 0:02:59.4]} 10... Nxd4 {[%clk 0:02:18.2]} 11. Rb1
{[%clk 0:02:59.4]} 11... Nxe2+ {[%clk 0:02:06.2]} 12. Qxe2 {[%clk 0:02:59.1]}
12... Qa3 {[%clk 0:01:44.5]} 13. Nd4 {[%clk 0:02:58.8]} 13... a6 {[%clk
0:01:25.3]} 14. Rfd1 {[%clk 0:02:54.4]} 14... Bg7 {[%clk 0:01:22.9]} 15. Nf1
{[%clk 0:02:47.5]} 15... O-O {[%clk 0:01:15.8]} 16. Rb3 {[%clk 0:02:46.6]} 16...
Qa4 {[%clk 0:01:10.1]} 17. Ng3 {[%clk 0:02:44.3]} 17... f5 {[%clk 0:00:08.2]}
18. Nh5 {[%clk 0:02:20.6]} 18... Kh8 {[%clk 0:00:08.7]} 19. Rc1 {[%clk
0:02:19.4]} 19... Rg8 {[%clk 0:00:06.7]} 20. Qe3 {[%clk 0:02:14.2]} 20... Bd7
{[%clk 0:00:02.3]} 21. Rxb7 {[%clk 0:02:13.7]} 21... Rac8 {[%clk 0:00:02.1]} 22.
Rf1 {[%clk 0:02:09.1]} 22... Rc4 {[%clk 0:00:01.8]} 23. Nb3 {[%clk 0:02:01.7]}
23... Re4 {[%clk 0:00:02]} 24. Qa7 {[%clk 0:01:58.7]} 1-0

[Event "Late-Titled-Tuesday-Blitz-October-03-2023"]
[Site "Chess.com"]
[Date "2023.10.03"]
[Round "4"]
[White "Rutricks"]
[Black "subham777"]
[Result "0-1"]
[WhiteElo "2690"]
[BlackElo "2544"]
[TimeControl "180+1"]
[EndTime "14:36:27 PDT"]
[Termination "subham777 won by checkmate"]

1. c4 {[%clk 0:03:00.9]} 1... e6 {[%clk 0:02:57.8]} 2. b3 {[%clk 0:02:58.3]}
2... d5 {[%clk 0:02:57.2]} 3. Bb2 {[%clk 0:02:59.2]} 3... Nf6 {[%clk 0:02:56.3]}
4. Nf3 {[%clk 0:02:59.8]} 4... c5 {[%clk 0:02:54.9]} 5. g3 {[%clk 0:03:00]} 5...
Nc6 {[%clk 0:02:54.5]} 6. Bg2 {[%clk 0:03:00.3]} 6... Be7 {[%clk 0:02:54.8]} 7.
O-O {[%clk 0:03:00.9]} 7... O-O {[%clk 0:02:54.9]} 8. e3 {[%clk 0:03:00.8]} 8...
d4 {[%clk 0:02:54.2]} 9. exd4 {[%clk 0:02:59.9]} 9... cxd4 {[%clk 0:02:55.1]}
10. Re1 {[%clk 0:03:00.5]} 10... d3 {[%clk 0:02:48.5]} 11. a3 {[%clk 0:02:53]}
11... a5 {[%clk 0:02:46]} 12. Bf1 {[%clk 0:02:47.1]} 12... Bc5 {[%clk
0:02:44.2]} 13. h3 {[%clk 0:02:43]} 13... Qd6 {[%clk 0:02:35.4]} 14. Kg2 {[%clk
0:02:01.1]} 14... b6 {[%clk 0:02:31.4]} 15. Nc3 {[%clk 0:01:29]} 15... Bb7
{[%clk 0:02:23.6]} 16. Nb5 {[%clk 0:01:11.7]} 16... Qd8 {[%clk 0:02:13.5]} 17.
Kg1 {[%clk 0:01:05.3]} 17... Qb8 {[%clk 0:02:03.6]} 18. Ne5 {[%clk 0:01:02.2]}
18... Nd7 {[%clk 0:01:47.3]} 19. Nxc6 {[%clk 0:00:23.1]} 19... Qxg3+ {[%clk
0:01:45.5]} 20. Bg2 {[%clk 0:00:14.6]} 20... Bxc6 {[%clk 0:01:43.2]} 21. Qg4
{[%clk 0:00:07.9]} 21... Bxf2+ {[%clk 0:01:38.9]} 22. Kf1 {[%clk 0:00:03.4]}
22... Bxg2# {[%clk 0:01:38.3]} 0-1

[Event "Late-Titled-Tuesday-Blitz-October-03-2023"]
[Site "Chess.com"]
[Date "2023.10.03"]
[Round "4"]
[White "chesskov1982"]
[Black "The_Straightforward_Rook"]
[Result "1-0"]
[WhiteElo "2831"]
[BlackElo "2555"]
[TimeControl "180+1"]
[EndTime "14:36:29 PDT"]
[Termination "chesskov1982 won by resignation"]

1. d4 {[%clk 0:03:00.9]} 1... Nf6 {[%clk 0:02:59.7]} 2. c4 {[%clk 0:03:00.4]}
2... e6 {[%clk 0:03:00.2]} 3. Nf3 {[%clk 0:02:59.8]} 3... b6 {[%clk 0:02:58.1]}
4. g3 {[%clk 0:02:56]} 4... Ba6 {[%clk 0:02:58.3]} 5. Qc2 {[%clk 0:02:51.4]}
5... c5 {[%clk 0:02:57.3]} 6. Bg2 {[%clk 0:02:49.8]} 6... Bb7 {[%clk 0:02:50.6]}
7. d5 {[%clk 0:02:43.6]} 7... exd5 {[%clk 0:02:50.3]} 8. Nh4 {[%clk 0:02:43.7]}
8... Nc6 {[%clk 0:02:37.9]} 9. cxd5 {[%clk 0:02:40.7]} 9... Nb4 {[%clk
0:02:36.5]} 10. Qd1 {[%clk 0:02:38.1]} 10... Bxd5 {[%clk 0:02:33.4]} 11. Bxd5
{[%clk 0:02:35.9]} 11... Nbxd5 {[%clk 0:02:32.9]} 12. e4 {[%clk 0:02:34.1]}
12... Nc7 {[%clk 0:02:31.6]} 13. e5 {[%clk 0:02:30.7]} 13... Nfd5 {[%clk
0:02:24.3]} 14. Nf5 {[%clk 0:02:27.6]} 14... Nb4 {[%clk 0:02:10.7]} 15. Nc3
{[%clk 0:02:24.9]} 15... Ne6 {[%clk 0:02:04.7]} 16. Ne4 {[%clk 0:02:22.4]} 16...
Nc6 {[%clk 0:01:55.4]} 17. O-O {[%clk 0:02:19.9]} 17... h5 {[%clk 0:01:51.4]}
18. h4 {[%clk 0:02:16.3]} 18... Ncd4 {[%clk 0:01:48.2]} 19. Nfd6+ {[%clk
0:02:09.5]} 19... Bxd6 {[%clk 0:01:46.9]} 20. Nxd6+ {[%clk 0:02:08]} 20... Kf8
{[%clk 0:01:47.4]} 21. f4 {[%clk 0:02:04.6]} 21... g6 {[%clk 0:01:41.8]} 22. f5
{[%clk 0:01:57.7]} 22... gxf5 {[%clk 0:01:37.4]} 23. Kh2 {[%clk 0:01:23.9]}
23... Ng7 {[%clk 0:01:21.1]} 24. Bg5 {[%clk 0:01:21.7]} 24... Qc7 {[%clk
0:01:14.9]} 25. Be3 {[%clk 0:01:14.5]} 25... Nge6 {[%clk 0:00:58.6]} 26. Rc1
{[%clk 0:01:08.9]} 26... Qc6 {[%clk 0:00:54.4]} 27. Qd3 {[%clk 0:01:05.7]} 27...
Qe4 {[%clk 0:00:52.8]} 28. Nxe4 {[%clk 0:01:00.9]} 28... fxe4 {[%clk 0:00:53.7]}
29. Qxe4 {[%clk 0:00:59.2]} 1-0

[Event "Late-Titled-Tuesday-Blitz-October-03-2023"]
[Site "Chess.com"]
[Date "2023.10.03"]
[Round "4"]
[White "RETURNOFTHELAGGER"]
[Black "akretchetov"]
[Result "1-0"]
[WhiteElo "2677"]
[BlackElo "2515"]
[TimeControl "180+1"]
[EndTime "14:36:30 PDT"]
[Termination "RETURNOFTHELAGGER won by resignation"]

1. e4 {[%clk 0:02:49.8]} 1... c6 {[%clk 0:02:59.8]} 2. d4 {[%clk 0:02:49.5]}
2... g6 {[%clk 0:03:00]} 3. Nc3 {[%clk 0:02:48]} 3... d5 {[%clk 0:03:00.1]} 4.
Be3 {[%clk 0:02:48.9]} 4... Bg7 {[%clk 0:02:59.3]} 5. e5 {[%clk 0:02:47.4]} 5...
f6 {[%clk 0:02:57.3]} 6. f4 {[%clk 0:02:46.2]} 6... Nh6 {[%clk 0:02:56.3]} 7.
Nf3 {[%clk 0:02:44.3]} 7... O-O {[%clk 0:02:49.5]} 8. h3 {[%clk 0:02:40.4]} 8...
Nf7 {[%clk 0:02:43.4]} 9. Qd2 {[%clk 0:02:38.2]} 9... fxe5 {[%clk 0:02:39.5]}
10. fxe5 {[%clk 0:02:37.3]} 10... e6 {[%clk 0:02:35.2]} 11. O-O-O {[%clk
0:02:36.3]} 11... Nd7 {[%clk 0:02:34]} 12. h4 {[%clk 0:02:34]} 12... c5 {[%clk
0:02:33.1]} 13. h5 {[%clk 0:02:34.6]} 13... c4 {[%clk 0:02:29.7]} 14. hxg6
{[%clk 0:02:34]} 14... hxg6 {[%clk 0:02:30]} 15. Nh4 {[%clk 0:02:22.7]} 15...
Nh8 {[%clk 0:02:22.5]} 16. Nb5 {[%clk 0:02:13.2]} 16... Nb6 {[%clk 0:02:11.7]}
17. Nd6 {[%clk 0:02:10.8]} 17... Qd7 {[%clk 0:02:05.8]} 18. c3 {[%clk
0:02:00.2]} 18... Qa4 {[%clk 0:01:46.5]} 19. Kb1 {[%clk 0:02:00]} 19... Bd7
{[%clk 0:01:45.1]} 20. Be2 {[%clk 0:01:58.2]} 20... Nc8 {[%clk 0:01:44.8]} 21.
Nxb7 {[%clk 0:01:46.4]} 21... Rb8 {[%clk 0:01:39.1]} 22. Nc5 {[%clk 0:01:45.9]}
22... Qc6 {[%clk 0:01:39.8]} 23. Rdf1 {[%clk 0:01:39.5]} 23... Rxf1+ {[%clk
0:01:36.2]} 24. Rxf1 {[%clk 0:01:40.4]} 24... Ne7 {[%clk 0:01:33.4]} 25. g4
{[%clk 0:01:37.4]} 25... Be8 {[%clk 0:01:31.1]} 26. Bg5 {[%clk 0:01:33.5]} 26...
Nc8 {[%clk 0:01:22.4]} 27. Bd1 {[%clk 0:01:34.1]} 27... Bxe5 {[%clk 0:01:18.3]}
28. Ba4 {[%clk 0:01:30.5]} 28... Qb6 {[%clk 0:01:02.2]} 29. Bxe8 {[%clk
0:01:30.9]} 29... Nd6 {[%clk 0:00:59.7]} 30. Bxg6 {[%clk 0:01:25.8]} 30... Nxg6
{[%clk 0:00:59.2]} 31. Nxg6 {[%clk 0:01:26.5]} 31... Bg7 {[%clk 0:00:54]} 32.
Ne7+ {[%clk 0:01:19.6]} 1-0

[Event "Late-Titled-Tuesday-Blitz-October-03-2023"]
[Site "Chess.com"]
[Date "2023.10.03"]
[Round "4"]
[White "OYAcosta"]
[Black "DanielDardha2005"]
[Result "0-1"]
[WhiteElo "2194"]
[BlackElo "2898"]
[TimeControl "180+1"]
[EndTime "14:36:39 PDT"]
[Termination "DanielDardha2005 won by resignation"]

1. d4 {[%clk 0:03:00.9]} 1... a6 {[%clk 0:02:54.3]} 2. Nf3 {[%clk 0:02:59.9]}
2... d5 {[%clk 0:02:53.7]} 3. Bf4 {[%clk 0:02:59.4]} 3... Nf6 {[%clk 0:02:51.4]}
4. e3 {[%clk 0:02:55.9]} 4... Bf5 {[%clk 0:02:50.5]} 5. Bd3 {[%clk 0:02:50.3]}
5... e6 {[%clk 0:02:49.9]} 6. O-O {[%clk 0:02:48.8]} 6... Bd6 {[%clk 0:02:49.2]}
7. Ne5 {[%clk 0:02:48.9]} 7... O-O {[%clk 0:02:45.7]} 8. Bxf5 {[%clk 0:02:48.8]}
8... exf5 {[%clk 0:02:46.6]} 9. c4 {[%clk 0:02:48.6]} 9... dxc4 {[%clk
0:02:46.6]} 10. Nxc4 {[%clk 0:02:48]} 10... Bxf4 {[%clk 0:02:47.3]} 11. exf4
{[%clk 0:02:48.4]} 11... Nc6 {[%clk 0:02:48]} 12. Qd3 {[%clk 0:02:35.9]} 12...
Qxd4 {[%clk 0:02:42]} 13. Qxd4 {[%clk 0:02:34.5]} 13... Nxd4 {[%clk 0:02:42.9]}
14. Nc3 {[%clk 0:02:34]} 14... b5 {[%clk 0:02:42.6]} 15. Ne5 {[%clk 0:02:33.8]}
15... c5 {[%clk 0:02:42.1]} 16. Rfd1 {[%clk 0:02:28.8]} 16... Rad8 {[%clk
0:02:37.3]} 17. a3 {[%clk 0:02:28.7]} 17... Ne4 {[%clk 0:02:33.7]} 18. Kf1
{[%clk 0:02:22.2]} 18... Nb3 {[%clk 0:02:27.4]} 19. Rxd8 {[%clk 0:02:18.3]}
19... Rxd8 {[%clk 0:02:28.3]} 20. Rd1 {[%clk 0:02:17.1]} 20... Rxd1+ {[%clk
0:02:23.5]} 21. Nxd1 {[%clk 0:02:17.3]} 21... f6 {[%clk 0:02:23.1]} 22. Nc6
{[%clk 0:02:12]} 22... Kf7 {[%clk 0:02:21.4]} 23. Nb8 {[%clk 0:02:09.9]} 23...
a5 {[%clk 0:02:19.3]} 24. f3 {[%clk 0:02:06.7]} 24... Ned2+ {[%clk 0:02:19]} 25.
Ke2 {[%clk 0:02:06.6]} 25... Ke6 {[%clk 0:02:15.8]} 26. Nc6 {[%clk 0:02:03.9]}
26... a4 {[%clk 0:02:12.4]} 27. Nc3 {[%clk 0:01:56.7]} 27... Nc4 {[%clk
0:02:02]} 28. Nxb5 {[%clk 0:01:47.7]} 28... Nxb2 {[%clk 0:02:01.5]} 29. Nc3
{[%clk 0:01:34.4]} 29... Kd6 {[%clk 0:01:55.8]} 30. Na7 {[%clk 0:01:25.7]} 30...
Nd4+ {[%clk 0:01:46.7]} 31. Kd2 {[%clk 0:01:21.6]} 31... Nc4+ {[%clk 0:01:46]}
32. Kd3 {[%clk 0:01:21.8]} 32... Nxa3 {[%clk 0:01:44.5]} 33. Nxa4 {[%clk
0:01:20.7]} 33... Nac2 {[%clk 0:01:41]} 34. Nc8+ {[%clk 0:01:18.1]} 34... Kd7
{[%clk 0:01:36.9]} 35. Ncb6+ {[%clk 0:01:11.3]} 35... Kc6 {[%clk 0:01:33.7]} 36.
Nc8 {[%clk 0:01:09.3]} 36... Ne1+ {[%clk 0:01:29.5]} 37. Kc4 {[%clk 0:01:08.8]}
37... Nxg2 {[%clk 0:01:28.5]} 38. Ne7+ {[%clk 0:01:08.8]} 38... Kd6 {[%clk
0:01:28.2]} 39. Nc8+ {[%clk 0:01:04.8]} 39... Kd7 {[%clk 0:01:27.7]} 40. Nxc5+
{[%clk 0:01:03.8]} 40... Kxc8 {[%clk 0:01:27]} 41. Kxd4 {[%clk 0:01:04.4]} 41...
Nxf4 {[%clk 0:01:27.4]} 42. Ne6 {[%clk 0:01:02.4]} 42... Nxe6+ {[%clk
0:01:27.4]} 43. Kd5 {[%clk 0:01:00.2]} 43... Kd7 {[%clk 0:01:28.3]} 0-1